fUST/lending_fUST_20240910
["ID","MTS","AMOUNT","RATE_DAILY","PERIOD"]
[337621111,1725898244006,-151.0,0.0003295,14]
[337621112,1725898244017,-508.56558,0.0003295,14]
[337621113,1725898244027,-508.56558,0.0003295,14]
[337621114,1725898244037,-508.56558,0.0003295,14]
[337621115,1725898244049,-508.565573,0.0003295,14]
[337621116,1725898244059,-152.646701,0.00032959,14]
[337621117,1725898244069,-151.0,0.0003296,14]
[337621118,1725898244080,-152.324702,0.0003296,14]
[337621119,1725898244090,-244.869803,0.0003296,14]
[337621120,1725898244100,-151.0,0.0003296,14]
[337621121,1725898244110,-151.0,0.0003296,14]
[337621122,1725898244120,-151.0,0.0003296,14]
[337621123,1725898244130,-212.229401,0.0003296,14]
[337621124,1725898244140,-1610.272842,0.0003296,14]
[337621125,1725898244150,-1610.272842,0.0003296,14]
[337621126,1725898244160,-1610.272842,0.0003296,14]
[337621127,1725898244170,-1610.27284,0.0003296,14]
[337621128,1725898244181,-529.47506892,0.00032973,5]
[337621129,1725898244191,-157.58457493,0.00032973,5]
[337621130,1725898244201,-500.0,0.00032973,5]
[337621131,1725898244212,-500.0,0.00032973,5]
[337621132,1725898244222,-500.0,0.00032973,5]
[337621133,1725898244233,-152.065709,0.0003298,14]
[337621134,1725898244252,-1500.0,0.00033,2]
[337621135,1725898244264,-1503.12,0.00033,2]
[337621136,1725898244275,-1500.0,0.00033,2]
[337621137,1725898244287,-447.88,0.00033,14]
[337621138,1725898244300,-150.112233,0.00033,6]
[337621139,1725898244311,-150.112233,0.00033,8]
[337621140,1725898244324,-2516.0,0.00033,30]
[337621141,1725898244336,-1500.0,0.00033,2]
[337621142,1725898244348,-2649.31490477,0.00033017,2]
[337621143,1725898244359,-438.38648543,0.00033143,5]
[337621144,1725898244370,-537.41654249,0.00033143,5]
[337621145,1725898244381,-328400.68115,0.00033299,2]
[337621146,1725898244394,-36503.23125988,0.000333,14]
[337621219,1725898245216,-500.0,0.0003152,2]
[337621221,1725898245227,-500.0,0.0003152,2]
[337621223,1725898245237,-500.0,0.0003152,2]
[337621225,1725898245255,-500.0,0.0003152,2]
[337621227,1725898245266,-500.0,0.0003152,2]
[337621229,1725898245276,-500.0,0.0003152,2]
[337621231,1725898245286,-500.0,0.0003152,2]
[337621233,1725898245297,-500.0,0.0003152,2]
[337621235,1725898245306,-500.0,0.0003152,2]
[337621237,1725898245317,-500.0,0.0003152,2]
[337621239,1725898245327,-500.0,0.0003152,2]
[337621241,1725898245337,-500.0,0.0003152,2]
[337621243,1725898245347,-500.0,0.0003152,2]
[337621246,1725898245357,-151.0,0.00032484,7]
[337621247,1725898245367,-198.75958,0.0003249,7]
[337621249,1725898245377,-4436.82874012,0.000333,14]
[337621251,1725898245386,-790.1558756,0.00033313,2]
[337621253,1725898245396,-1500.0,0.00033333,2]
[337621256,1725898245406,-5410.18128073,0.00033369,2]
[337621258,1725898245416,-5410.18128075,0.00033578,2]
[337621260,1725898245425,-620.75809662,0.00033667,2]
[337621262,1725898245436,-153.0,0.00033699,2]
[337621264,1725898245445,-153.0,0.00033699,2]
[337621266,1725898245455,-153.0,0.00033699,2]
[337621268,1725898245464,-153.0,0.00033699,2]
[337621270,1725898245473,-153.0,0.00033699,2]
[337621272,1725898245484,-3060.15,0.000337,14]
[337621274,1725898245500,-501.25041749,0.00033824,2]
[337621276,1725898245509,-803.72080134,0.00033824,2]
[337621278,1725898245519,-251.00193753,0.00033839,5]
[337621280,1725898245528,-97669.12691864,0.00033904,2]
[337621282,1725898245538,-153.0,0.00033973,2]
[337621284,1725898245548,-153.0,0.00033973,2]
[337621286,1725898245560,-153.0,0.00033973,2]
[337621288,1725898245569,-153.0,0.00033973,2]
[337621290,1725898245578,-153.0,0.00033973,2]
[337621292,1725898245587,-814.53889237,0.00033977,5]
[337621294,1725898245597,-1000.0,0.00033977,5]
[337621296,1725898245607,-690.88,0.00034,14]
[337621298,1725898245620,-663.8729052,0.00034087,5]
[337621300,1725898245630,-2649.31490477,0.00034229,2]
[337621302,1725898245641,-500.0,0.00034246,31]
[337621304,1725898245651,-500.0,0.00034246,31]
[337621306,1725898245662,-500.0,0.00034246,31]
[337621308,1725898245671,-500.0,0.00034246,31]
[337621310,1725898245682,-500.0,0.00034246,31]
[337621313,1725898245694,-500.0,0.00034246,31]
[337621315,1725898245704,-500.0,0.00034246,31]
[337621317,1725898245716,-500.0,0.00034246,31]
[337621319,1725898245725,-500.0,0.00034246,31]
[337621321,1725898245736,-500.0,0.00034246,31]
[337621323,1725898245749,-500.0,0.00034246,31]
[337621325,1725898245758,-500.0,0.00034246,31]
[337621327,1725898245767,-500.0,0.00034246,31]
[337621329,1725898245776,-500.0,0.00034246,31]
[337621331,1725898245786,-500.0,0.00034246,31]
[337621333,1725898245796,-500.0,0.00034246,31]
[337621336,1725898245808,-500.0,0.00034246,31]
[337621338,1725898245818,-500.0,0.00034246,31]
[337621341,1725898245829,-500.0,0.00034246,31]
[337621343,1725898245839,-500.0,0.00034246,31]
[337621345,1725898245849,-500.0,0.00034246,31]
[337621347,1725898245859,-508.10470506,0.00034246,31]
[337621349,1725898245869,-1000.0,0.00034246,60]
[337621351,1725898245878,-153.0,0.00034247,2]
[337621353,1725898245888,-153.0,0.00034247,2]
[337621355,1725898245897,-153.0,0.00034247,2]
[337621358,1725898245908,-153.0,0.00034247,2]
[337621361,1725898245918,-790.1558756,0.00034254,2]
[337621363,1725898245928,-1000.0,0.00034281,5]
[337621365,1725898245938,-1000.0,0.00034342,5]
[337621367,1725898245947,-1000.0,0.00034342,5]
[337621369,1725898245956,-1087.08071916,0.00034342,5]
[337621371,1725898245965,-446.7519936,0.00034542,2]
[337621373,1725898245977,-153.0,0.00034542,2]
[337621375,1725898245986,-153.0,0.00034542,2]
[337621377,1725898246000,-153.0,0.00034542,2]
[337621379,1725898246009,-153.0,0.00034542,2]
[337621381,1725898246019,-82051.22051776,0.0003462,2]
[337621383,1725898246029,-2516.0,0.000347,30]
[337621385,1725898246039,-153.0,0.00034795,2]
[337621388,1725898246049,-153.0,0.00034795,2]
[337621390,1725898246058,-153.0,0.00034795,2]
[337621392,1725898246068,-153.0,0.00034795,2]
[337621394,1725898246078,-153.0,0.00034795,2]
[337621396,1725898246088,-153.0,0.00034795,2]
[337621398,1725898246099,-447.88,0.000348,14]
[337621400,1725898246109,-1000.0,0.000348,3]
[337621402,1725898246119,-40441.35253788,0.0003497,2]
[337621404,1725898246129,-500.0,0.00035,2]
[337621406,1725898246139,-6000.0,0.00035,30]
[337621408,1725898246149,-411.00963073,0.00035029,2]
[337621410,1725898246160,-208.2649181,0.00035068,2]
[337621412,1725898246172,-284.0229609,0.00035068,2]
[337621414,1725898246183,-208.2649181,0.00035068,2]
[337621416,1725898246194,-208.2649181,0.00035068,2]
[337621418,1725898246205,-208.2649181,0.00035068,2]
[337621420,1725898246215,-208.2649181,0.00035068,2]
[337621422,1725898246226,-415.393196,0.00035068,2]
[337621424,1725898246236,-790.1558756,0.00035195,2]
[337621426,1725898246253,-40940.06,0.000352,14]
[337621428,1725898246263,-1000.0,0.00035205,60]
[337621430,1725898246274,-29690.584,0.00035339,2]
[337621432,1725898246284,-2649.31490477,0.00035441,2]
[337621434,1725898246295,-308.2236468,0.000355,2]
[337621436,1725898246307,-1500.0,0.000356,2]
[337621439,1725898246318,-1500.0,0.000356,2]
[337621441,1725898246328,-1500.0,0.000356,2]
[337621443,1725898246338,-1500.0,0.000356,2]
[337621445,1725898246349,-500.0,0.00035616,14]
[337621447,1725898246359,-500.0,0.00035616,2]
[337621449,1725898246369,-500.0,0.00035616,14]
[337621451,1725898246379,-715.2,0.00035616,14]
[337621453,1725898246390,-585.15,0.00035616,14]
[337621455,1725898246400,-569.58,0.00035616,14]
[337621457,1725898246410,-500.0,0.00035616,14]
[337621459,1725898246420,-500.0,0.00035616,14]
[337621462,1725898246434,-500.0,0.00035616,14]
[337621464,1725898246445,-500.0,0.00035616,14]
[337621466,1725898246455,-500.0,0.00035616,14]
[337621468,1725898246466,-500.0,0.00035616,14]
[337621470,1725898246476,-500.0,0.00035616,14]
[337621472,1725898246488,-500.0,0.00035616,14]
[337621474,1725898246504,-500.0,0.00035616,14]
[337621476,1725898246514,-257.12157349,0.00035616,14]
[337621478,1725898246524,-500.0,0.00035616,2]
[337621481,1725898246534,-500.0,0.00035616,14]
[337621483,1725898246544,-500.0,0.00035616,14]
[337621485,1725898246554,-502.88880513,0.00035616,14]
[337621487,1725898246564,-748.39,0.00035616,14]
[337621489,1725898246574,-500.0,0.00035616,14]
[337621491,1725898246585,-500.0,0.00035616,14]
[337621493,1725898246595,-502.27479716,0.00035616,14]
[337621495,1725898246605,-1230.17,0.00035616,14]
[337621497,1725898246617,-500.0,0.00035616,14]
[337621499,1725898246627,-501.04688144,0.00035616,14]
[337621500,1725898246637,-500.0,0.00035616,14]
[337621503,1725898246655,-386.22719369,0.00035616,14]
[337621505,1725898246667,-500.0,0.00035616,14]
[337621507,1725898246677,-488.55561951,0.00035616,14]
[337621509,1725898246687,-500.0,0.00035616,14]
[337621511,1725898246698,-503.42555925,0.00035616,14]
[337621513,1725898246708,-928.07,0.00035616,14]
[337621515,1725898246717,-622.3682398,0.00035616,14]
[337621517,1725898246729,-500.0,0.00035616,14]
[337621519,1725898246743,-500.0,0.00035616,14]
[337621521,1725898246752,-500.0,0.00035616,14]
[337621523,1725898246762,-500.0,0.00035616,14]
[337621526,1725898246772,-663.46,0.00035616,14]
[337621528,1725898246782,-500.0,0.00035616,14]
[337621530,1725898246793,-500.0,0.00035616,14]
[337621532,1725898246803,-500.0,0.00035616,14]
[337621534,1725898246813,-357.9401846,0.00035616,14]
[337621536,1725898246823,-500.0,0.00035616,14]
[337621538,1725898246833,-500.0,0.00035616,14]
[337621540,1725898246844,-500.0,0.00035616,14]
[337621542,1725898246854,-642.16488468,0.00035616,14]
[337621544,1725898246864,-500.0,0.00035616,14]
[337621546,1725898246874,-221.07170898,0.00035616,14]
[337621548,1725898246884,-500.0,0.00035616,14]
[337621550,1725898246893,-500.0,0.00035616,14]
[337621552,1725898246903,-337.33357221,0.00035616,14]
[337621607,1725898247620,-500.0,0.00032455,5]
[337621609,1725898247630,-153.0,0.00034542,2]
[337621611,1725898247640,-154.82575187,0.00035616,14]
[337623038,1725899206124,-166.666666,0.00027582,2]
[337623039,1725899206146,-166.666666,0.00028334,2]
[337623040,1725899206166,-166.666666,0.00029086,2]
[337623041,1725899206188,-1680.27142358,0.0002969,2]
[337623042,1725899350112,-7994.780514,0.0002509,2]
[337623043,1725899350135,-300.0,0.00026848,2]
[337623108,1725899433658,-2075.426768,0.00028539,2]
[337623109,1725899433674,-3063.88909362,0.00028539,2]
[337623115,1725899438533,-1045.97674488,0.00028539,2]
[337623116,1725899438544,-250.0,0.00028649,2]
[337623117,1725899438554,-300.0,0.00028726,2]
[337623118,1725899438564,-250.0,0.00028727,2]
[337623120,1725899438573,-250.0,0.00028806,2]
[337623121,1725899438583,-250.0,0.00028885,2]
[337623122,1725899438592,-250.0,0.00028963,2]
[337623124,1725899438601,-250.0,0.00029042,2]
[337623125,1725899438612,-465.62840537,0.00029103,2]
[337623126,1725899438622,-250.0,0.0002912,2]
[337623127,1725899438632,-250.0,0.00029199,2]
[337623130,1725899438644,-250.0,0.00029277,2]
[337623132,1725899438653,-250.0,0.00029356,2]
[337623133,1725899438662,-250.0,0.00029435,2]
[337623136,1725899438672,-10465.56543541,0.00029502,2]
[337623138,1725899438682,-250.0,0.00029513,2]
[337623140,1725899438692,-250.0,0.00029592,2]
[337623142,1725899438701,-2428.20160132,0.00029649,2]
[337623144,1725899438711,-250.0,0.0002967,2]
[337623146,1725899438720,-563.02391862,0.00029688,2]
[337623148,1725899438730,-163.60148899,0.0002969,2]
[337623150,1725899438740,-1843.87291256,0.00029693,2]
[337623152,1725899438750,-1843.87291256,0.00029695,2]
[337623154,1725899438760,-1843.87291256,0.00029698,2]
[337623156,1725899438769,-1843.87291256,0.000297,2]
[337623158,1725899438779,-150.112233,0.000297,9]
[337623160,1725899438789,-250.0,0.00029749,2]
[337623162,1725899438798,-934.11,0.00029758,3]
[337623164,1725899438808,-163.49380853,0.00029767,2]
[337623166,1725899438818,-390.56448619,0.00029767,2]
[337623168,1725899438830,-109.43551381,0.00029767,2]
[337623170,1725899438841,-495.99077803,0.00029767,2]
[337623173,1725899438853,-500.0,0.00029767,2]
[337623175,1725899438863,-371.70346534,0.00029767,2]
[337623177,1725899438873,-500.0,0.00029767,2]
[337623179,1725899438882,-500.0,0.00029767,2]
[337623180,1725899438892,-500.0,0.00029767,2]
[337623182,1725899438901,-369.36725547,0.00029767,2]
[337623184,1725899438911,-500.0,0.00029767,2]
[337623186,1725899438921,-500.0,0.00029767,2]
[337623188,1725899438931,-500.0,0.00029767,2]
[337623190,1725899438944,-457.72527562,0.00029767,2]
[337623192,1725899438954,-500.0,0.00029767,2]
[337623194,1725899438964,-500.0,0.00029767,2]
[337623196,1725899438975,-500.0,0.00029767,2]
[337623198,1725899438985,-500.0,0.00029767,2]
[337623200,1725899438994,-500.0,0.00029767,2]
[337623202,1725899439004,-500.0,0.00029767,2]
[337623204,1725899439018,-500.0,0.00029767,2]
[337623206,1725899439028,-500.0,0.00029767,2]
[337623208,1725899439039,-500.0,0.00029767,2]
[337623210,1725899439049,-500.0,0.00029767,2]
[337623212,1725899439058,-500.0,0.00029767,2]
[337623214,1725899439068,-500.0,0.00029767,2]
[337623216,1725899439077,-500.0,0.00029767,2]
[337623218,1725899439086,-332.44453117,0.00029767,2]
[337623220,1725899439096,-500.0,0.00029767,2]
[337623223,1725899439108,-500.0,0.00029767,2]
[337623225,1725899439117,-500.0,0.00029767,2]
[337623227,1725899439127,-500.0,0.00029767,2]
[337623229,1725899439136,-500.0,0.00029767,2]
[337623231,1725899439147,-500.0,0.00029767,2]
[337623233,1725899439158,-500.0,0.00029767,2]
[337623235,1725899439167,-500.0,0.00029767,2]
[337623237,1725899439177,-500.0,0.00029767,2]
[337623239,1725899439186,-500.0,0.00029767,2]
[337623241,1725899439197,-500.0,0.00029767,2]
[337623243,1725899439206,-500.0,0.00029767,2]
[337623245,1725899439216,-500.0,0.00029767,2]
[337623247,1725899439226,-500.0,0.00029767,2]
[337623249,1725899439236,-500.0,0.00029767,2]
[337623251,1725899439246,-260781.555137,0.00029768,4]
[337623253,1725899439255,-86927.1850457,0.0002977,4]
[337623255,1725899439264,-500.0,0.00029773,5]
[337623257,1725899439274,-310.8157173,0.00029773,5]
[337623259,1725899439284,-500.0,0.00029773,5]
[337623261,1725899439294,-500.0,0.00029773,5]
[337623263,1725899439303,-537.41654249,0.00029773,5]
[337623265,1725899439313,-304.55000664,0.00029773,5]
[337623267,1725899439322,-500.53596247,0.00029773,5]
[337623269,1725899439332,-500.0,0.00029773,5]
[337623271,1725899439341,-500.0,0.00029773,5]
[337623273,1725899439351,-500.0,0.00029773,2]
[337623275,1725899439361,-159.27092859,0.00029773,5]
[337623277,1725899439372,-161.54779481,0.00029773,5]
[337623279,1725899439381,-501.66479479,0.00029773,5]
[337623281,1725899439396,-434.0679777,0.00029773,5]
[337623283,1725899439406,-500.0,0.00029773,5]
[337623285,1725899439415,-500.0,0.00029773,2]
[337623287,1725899439425,-259.21,0.00029777,2]
[337623289,1725899439436,-158840.869619,0.00029778,4]
[337623291,1725899439446,-151.0,0.0002978,2]
[337623293,1725899439456,-152.646701,0.0002978,7]
[337623295,1725899439467,-363.637776,0.0002978,7]
[337623297,1725899439477,-317681.739238,0.0002978,4]
[337623299,1725899439487,-334027.58025034,0.000298,2]
[337623301,1725899439500,-598683.48274152,0.000298,2]
[337623413,1725899440661,-529.47506892,0.00029773,5]
[337623415,1725899440671,-363.637776,0.0002978,7]
[337623417,1725899440681,-26781.38753965,0.000298,2]
[337623419,1725899440694,-4034.94649481,0.000298,2]
[337623421,1725899440704,-2264.4,0.000298,7]
[337623423,1725899440714,-414.29,0.000298,14]
[337623425,1725899440724,-639.07,0.000298,14]
[337623427,1725899440733,-2688.0,0.000298,14]
[337623429,1725899440743,-6735.23250264,0.000298,14]
[337623519,1725899443734,-242.25238017,0.000298,14]
[337623522,1725899443746,-4840.77038241,0.000298,14]
[337623835,1725899446745,-23639.28327247,0.00029502,2]
[337623837,1725899446754,-157.58457493,0.00029773,5]
[337623839,1725899446763,-24584.11473478,0.000298,14]
[337623841,1725899446773,-150.112233,0.000298,5]
[337623843,1725899446782,-150.112233,0.000298,9]
[337623845,1725899446792,-150.112233,0.000298,7]
[337623847,1725899446801,-150.112233,0.000298,7]
[337623849,1725899446810,-150.112233,0.000298,7]
[337623851,1725899446820,-150.112233,0.000298,5]
[337623853,1725899446830,-150.112233,0.000298,6]
[337623855,1725899446839,-150.112233,0.000298,9]
[337623857,1725899446848,-150.112233,0.000298,9]
[337623859,1725899446858,-150.112233,0.000298,5]
[337623861,1725899446867,-153.061054,0.000298,7]
[337623863,1725899446876,-4163.164683,0.000298,7]
[337623866,1725899446886,-4163.164683,0.000298,7]
[337623868,1725899446897,-151.0,0.000298,7]
[337623870,1725899446911,-150.112233,0.000298,9]
[337623872,1725899446921,-59.67512509,0.000298,5]
[337625314,1725899462378,219.231349,0.00028049,2]
[337625363,1725899499266,166.666666,0.00027564,2]
[337625364,1725899515499,6099.23764076,0.00027956,2]
[337625365,1725899911259,500.0,0.00028,120]
[337625366,1725899929132,500.0,0.00028,120]
[337625368,1725899955400,506.28844467,0.00028,120]
[337625369,1725899995917,497.8,0.00028,120]
[337625370,1725900007375,716.10133147,0.0002352,2]
[337625371,1725900008448,477.55506657,0.00024696,2]
[337625373,1725900251534,225.8609559,0.00024365,2]
[337625374,1725900288710,5361.07116886,0.00024973,2]
[337625375,1725900301179,150.0,0.00024822,2]
[337625376,1725900405952,250.0,0.00024561,2]
[337625377,1725900407572,250.0,0.00024629,2]
[337625378,1725900408013,250.0,0.00024696,2]
[337625379,1725900408241,250.0,0.00024763,2]
[337625380,1725900408454,250.0,0.00024831,2]
[337625381,1725900408682,250.0,0.00024898,2]
[337625382,1725900408924,250.0,0.00024966,2]
[337625383,1725900538519,270.6017625,0.00024367,2]
[337625384,1725900539982,166.666666,0.00023953,2]
[337625385,1725900540238,166.666666,0.00024606,2]
[337625386,1725900559913,24900.0,0.00024406,2]
[337625387,1725900560186,-250.0,0.00025033,2]
[337625388,1725900560209,-337.664868,0.00025073,2]
[337625389,1725900560234,-337.664868,0.00025079,2]
[337625390,1725900560258,-337.664868,0.00025086,2]
[337625391,1725900560284,-337.664868,0.00025093,2]
[337625392,1725900560307,-337.664868,0.00025099,2]
[337625393,1725900560331,-250.0,0.000251,2]
[337625394,1725900560356,-337.664868,0.00025106,2]
[337625395,1725900560376,-337.664868,0.00025112,2]
[337625396,1725900560398,-337.664868,0.00025119,2]
[337625397,1725900560419,-337.664868,0.00025126,2]
[337625398,1725900560441,-337.664868,0.00025132,2]
[337625399,1725900560461,-337.664868,0.00025139,2]
[337625400,1725900560482,-337.664868,0.00025146,2]
[337625401,1725900560504,-337.664868,0.00025152,2]
[337625402,1725900560525,-337.664868,0.00025159,2]
[337625403,1725900560548,-337.664868,0.00025165,2]
[337625404,1725900560569,-250.0,0.00025168,2]
[337625405,1725900560590,-337.664868,0.00025172,2]
[337625406,1725900560614,-337.664868,0.00025179,2]
[337625407,1725900560635,-337.664868,0.00025185,2]
[337625408,1725900560657,-337.664868,0.00025192,2]
[337625409,1725900560678,-337.664868,0.00025198,2]
[337625410,1725900560699,-300.0,0.00025205,2]
[337625411,1725900560721,-300.0,0.00025205,2]
[337625412,1725900560744,-250.0,0.00025235,2]
[337625413,1725900560766,-166.666666,0.00025259,2]
[337625414,1725900560787,-250.0,0.00025302,2]
[337625415,1725900560808,-1798.5582527,0.00025363,2]
[337625416,1725900560830,-250.0,0.0002537,2]
[337625417,1725900560854,-250.0,0.00025437,2]
[337625418,1725900560875,-227.1291972,0.00025492,2]
[337625419,1725900560897,-250.0,0.00025505,2]
[337625420,1725900560919,-250.0,0.00025572,2]
[337625421,1725900560940,-250.0,0.00025589,2]
[337625422,1725900560960,-250.0,0.00025639,2]
[337625423,1725900560981,-250.0,0.00025707,2]
[337625424,1725900561003,-250.0,0.00025774,2]
[337625425,1725900561024,-250.0,0.00025841,2]
[337625426,1725900561046,-166.666666,0.00025912,2]
[337625427,1725900561066,-465.62775333,0.00025931,2]
[337625428,1725900561087,-166.666666,0.00026565,2]
[337625429,1725900561112,-2861.99160532,0.00026751,2]
[337625430,1725900561132,-588.613546,0.00026851,2]
[337625431,1725900561153,-166.666666,0.00027218,2]
[337625432,1725900561175,-465.03138767,0.00027227,2]
[337625433,1725900561195,-420.0,0.000273,2]
[337625434,1725900561223,-420.0,0.00027726,2]
[337625435,1725900561244,-521.35785798,0.00027855,2]
[337625436,1725900561267,-5181.6313826,0.00028006,2]
[337625437,1725900561287,-3198.30672826,0.00028261,2]
[337625438,1725900563091,-1983.32465434,0.00028261,2]
[337625439,1725900563113,-916.49056416,0.00028487,2]
[337625473,1725900637726,-294.306773,0.00028052,2]
[337625474,1725900637736,-2181.98660392,0.00028728,2]
[337625475,1725900637834,-2999.64477868,0.00028728,2]
[337625476,1725900637844,-300.0,0.00028937,2]
[337625477,1725900637855,-5181.6313826,0.00028938,2]
[337625478,1725900637864,-150.0,0.00029158,2]
[337625479,1725900637874,-5181.6313826,0.00029203,2]
[337625480,1725900637884,-5181.63138263,0.00029342,2]
[337625481,1725900637894,-150.0,0.00029425,2]
[337625482,1725900637904,-2889.30795415,0.00029662,2]
[337625483,1725900637915,-2889.30795415,0.00029665,2]
[337625484,1725900637925,-2889.30795415,0.00029668,2]
[337625485,1725900637935,-2889.30795415,0.00029671,2]
[337625486,1725900637945,-2889.30795415,0.00029674,2]
[337625487,1725900637957,-506.72152674,0.00029677,2]
[337625488,1725900637966,-1314.13,0.00029741,3]
[337625489,1725900637976,-657.06,0.00029741,3]
[337625490,1725900637986,-328.53,0.00029741,3]
[337625491,1725900637997,-164.27,0.00029741,3]
[337625492,1725900638006,-492.81,0.00029741,3]
[337625493,1725900638016,-210.76,0.00029741,3]
[337625494,1725900638027,-175.64,0.00029741,3]
[337625495,1725900638039,-878.21,0.00029741,3]
[337625496,1725900638049,-259.18,0.0002975,2]
[337625497,1725900638060,-259.18,0.0002975,2]
[337625498,1725900638070,-259.18,0.0002975,2]
[337625499,1725900638079,-259.18,0.0002975,2]
[337625500,1725900638088,-259.18,0.0002975,2]
[337625501,1725900638097,-259.18,0.0002975,2]
[337625502,1725900638107,-259.18,0.0002975,2]
[337625503,1725900638116,-259.18,0.0002975,2]
[337625504,1725900638127,-259.18,0.0002975,2]
[337625505,1725900638139,-259.18,0.0002975,2]
[337625506,1725900638149,-500.0,0.0002975,2]
[337625507,1725900638160,-500.0,0.0002975,2]
[337625508,1725900638170,-500.0,0.0002975,2]
[337625509,1725900638181,-500.0,0.0002975,2]
[337625510,1725900638190,-500.0,0.0002975,2]
[337625511,1725900638200,-500.0,0.0002975,2]
[337625512,1725900638210,-457.72527562,0.0002975,2]
[337625514,1725900638224,-500.0,0.0002975,2]
[337625517,1725900638235,-500.0,0.0002975,2]
[337625519,1725900638247,-500.0,0.0002975,2]
[337625521,1725900638261,-400.0,0.0002975,2]
[337625523,1725900638271,-500.0,0.0002975,2]
[337625525,1725900638282,-500.0,0.0002975,2]
[337625527,1725900638293,-500.0,0.0002975,2]
[337625529,1725900638305,-500.0,0.0002975,2]
[337625531,1725900638316,-500.0,0.0002975,2]
[337625533,1725900638327,-500.0,0.0002975,2]
[337625535,1725900638339,-500.0,0.0002975,2]
[337625537,1725900638350,-500.0,0.0002975,2]
[337625540,1725900638361,-500.0,0.0002975,2]
[337625541,1725900638370,-500.0,0.0002975,2]
[337625544,1725900638381,-500.0,0.0002975,2]
[337625546,1725900638392,-500.0,0.0002975,2]
[337625548,1725900638404,-500.812646,0.0002975,2]
[337625550,1725900638416,-500.0,0.0002975,2]
[337625552,1725900638427,-228.27028467,0.0002975,2]
[337625555,1725900638439,-371.70346534,0.0002975,2]
[337625557,1725900638450,-500.0,0.0002975,2]
[337625559,1725900638460,-500.0,0.0002975,2]
[337625561,1725900638469,-500.0,0.0002975,2]
[337625564,1725900638480,-543.74814108,0.0002975,2]
[337625567,1725900638505,-500.0,0.0002975,2]
[337625570,1725900638522,-500.0,0.0002975,2]
[337625572,1725900638538,-500.0,0.0002975,2]
[337625575,1725900638553,-500.0,0.0002975,2]
[337625578,1725900638568,-500.0,0.0002975,2]
[337625580,1725900638584,-500.0,0.0002975,2]
[337625583,1725900638598,-500.0,0.0002975,2]
[337625586,1725900638613,-500.0,0.0002975,2]
[337625588,1725900638629,-500.0,0.0002975,2]
[337625591,1725900638643,-500.0,0.0002975,2]
[337625593,1725900638659,-500.0,0.0002975,2]
[337625596,1725900638677,-500.0,0.0002975,2]
[337625599,1725900638693,-500.0,0.0002975,2]
[337625601,1725900638707,-500.0,0.0002975,2]
[337625604,1725900638719,-500.0,0.0002975,2]
[337625606,1725900638735,-500.0,0.0002975,2]
[337625609,1725900638749,-500.0,0.0002975,2]
[337625611,1725900638766,-500.0,0.0002975,2]
[337625614,1725900638780,-500.0,0.0002975,2]
[337625617,1725900638795,-500.0,0.0002975,2]
[337625619,1725900638811,-500.0,0.0002975,2]
[337625622,1725900638829,-500.0,0.0002975,2]
[337625624,1725900638840,-500.0,0.0002975,2]
[337625627,1725900638851,-500.0,0.0002975,2]